bitfinex-derivatives/quotes_ETHF0:USTF0_20250116
["timestamp","ask_amount","ask_price","bid_price","bid_amount"]
[1737000909863,0.59313,3372.4,3372.3,41.2463]
[1737000911565,0.59313,3372.4,3372.3,0.4463]
[1737000925580,0.59313,3372.4,3372.1,0.4562]
[1737000925581,0.59317,3372.2,3372.1,0.4562]
[1737000932082,1.08227,3372.2,3372.1,0.4562]
[1737000942899,0.5932,3372.0,3371.7,0.4795]
[1737000943092,1.64903957,3371.9,3371.8,0.4663]
[1737000943397,0.59322,3371.9,3371.8,0.4663]
[1737000943898,0.59321,3372.0,3371.8,0.4663]
[1737000944298,0.5932,3372.0,3371.9,0.478]
[1737000946297,0.59322,3371.9,3371.8,0.4663]
[1737000946501,1.06232,3371.9,3371.8,0.4663]
[1737000947301,0.59326,3371.7,3371.6,0.4601]
[1737000947593,0.59326,3371.7,3371.4,0.4539]
[1737000947594,1.05581957,3371.7,3371.4,0.4539]
[1737000947793,1.64910957,3371.5,3371.4,0.4539]
[1737000947999,1.04428,3371.6,3371.4,0.4539]
[1737000948393,0.59329,3371.5,3371.4,0.4539]
[1737000948588,1.05581957,3371.5,3371.3,4.64671365]
[1737000948791,3.80111,3371.4,3371.3,4.64671365]
[1737000949301,0.59334,3371.2,3371.1,0.914]
[1737000949598,1.64915957,3371.2,3371.1,0.914]
[1737000951295,0.59336,3371.1,3371.0,3.2509146]
[1737000951500,1.05326,3371.1,3371.0,3.2509146]
[1737000953900,0.4599,3371.1,3370.7,0.4631]
[1737000954093,1.64923957,3370.8,3370.7,0.4631]
[1737000954900,0.59345,3370.6,3370.5,0.4832]
[1737000955301,1.64926957,3370.6,3370.5,0.4832]
[1737000955496,2.12946957,3370.6,3370.5,0.4832]
[1737000958416,1.07365,3370.6,3370.5,0.4832]
[1737000958916,2.12946957,3370.6,3370.5,0.4832]
[1737000961915,0.59347,3370.5,3370.4,0.4641]
[1737000963622,3.2078,3370.6,3370.4,0.4641]
[1737000963826,3.2078,3370.6,3370.5,1.05581957]
[1737000964122,3.2078,3370.6,3370.5,1.51181957]
[1737000964323,3.2078,3370.6,3370.5,2.10528957]
[1737000964527,4.25689,3371.0,3370.6,0.59344]
[1737000964724,4.25689,3371.0,3370.9,1.05581957]
[1737000964926,3.2078,3371.0,3370.9,1.05581957]
[1737000965138,3.80118,3371.0,3370.9,1.05581957]
[1737000965322,0.59338,3371.0,3370.9,1.05581957]
[1737000967423,0.59338,3371.0,3370.6,1.05354]
[1737000968524,0.59338,3371.0,3370.6,0.4601]
[1737000969423,0.59338,3371.0,3370.6,1.05354]
[1737000969726,0.9062,3371.2,3370.6,0.4601]
[1737000969929,0.59334,3371.3,3370.9,0.59339]
[1737000970133,3.2078,3371.4,3371.0,1.06327]
[1737000970333,3.2078,3371.4,3371.1,0.943]
[1737000970528,3.80112,3371.4,3371.1,0.943]
[1737000972029,0.59333,3371.3,3371.1,0.943]
[1737000972527,0.59334,3371.2,3371.1,0.943]
[1737000972724,0.59334,3371.2,3371.1,0.4788]
[1737000980839,0.4539,3371.3,3371.0,0.4699]
[1737000980840,0.59336,3371.1,3371.0,0.4699]
[1737000981145,1.07996,3371.1,3371.0,0.4699]
[1737000989756,0.59342,3370.8,3370.7,2.01607939]
[1737000990048,0.59342,3370.8,3370.7,42.81607939]
[1737000991343,0.59342,3370.8,3370.7,41.7594]
[1737000991547,0.4669,3370.9,3370.7,41.7594]
[1737000991945,0.59342,3370.8,3370.7,41.7594]
[1737000992752,0.59342,3370.8,3370.7,42.81607939]
[1737000993855,0.4669,3370.9,3370.7,42.81607939]
[1737000994054,1.06031,3370.9,3370.7,42.81607939]
[1737000994360,0.59342,3370.8,3370.7,42.81607939]
[1737000995544,0.4669,3370.9,3370.7,42.81607939]
[1737000995751,1.06031,3370.9,3370.7,42.81607939]
[1737000996246,0.4669,3370.9,3370.7,42.81607939]
[1737000996449,1.0603,3370.9,3370.7,42.81607939]
[1737000996646,1.07997,3371.1,3370.7,42.81607939]
[1737000996851,0.59336,3371.2,3371.0,1.05667939]
[1737000997248,0.59336,3371.2,3371.1,0.4744]
[1737001005763,0.4876,3371.3,3371.1,0.4744]
[1737001006054,0.59328,3371.6,3371.3,0.59333]
[1737001006259,0.59328,3371.6,3371.5,1.05667939]
[1737001006660,0.5933,3371.5,3371.3,1.05667939]
[1737001007061,0.59326,3371.7,3371.3,1.05667939]
[1737001007261,0.5933,3371.5,3371.3,1.05667939]
[1737001008564,5.20607939,3371.8,3371.3,1.05667939]
[1737001008756,0.59331,3371.4,3371.3,1.05667939]
[1737001010465,1.05667939,3371.6,3371.3,1.05667939]
[1737001010662,0.59331,3371.4,3371.3,1.05667939]
[1737001011062,0.59333,3371.3,3371.2,0.4518]
[1737001011258,0.59338,3371.0,3370.9,4.64671365]
[1737001011467,0.59338,3371.0,3370.7,0.4492]
[1737001011667,1.0719,3370.9,3370.7,0.4492]
[1737001012270,0.4785,3370.9,3370.8,1.05667939]
[1737001012574,0.59336,3371.1,3370.8,1.65009939]
[1737001012776,0.4785,3371.2,3371.0,1.05667939]
[1737001013077,1.07185,3371.2,3371.0,1.05667939]
[1737001013275,0.4785,3371.2,3371.0,1.05667939]
[1737001013572,1.07185,3371.2,3371.0,1.53097939]
[1737001014567,0.59336,3371.1,3371.0,0.4743]
[1737001016368,1.07185,3371.2,3371.0,0.4743]
[1737001016673,1.07185,3371.2,3371.1,1.05667939]
[1737001020676,0.59336,3371.1,3371.0,0.4743]
[1737001023377,3.6686,3371.3,3371.0,1.06767]
[1737001023678,3.6686,3371.3,3371.1,1.05667939]
[1737001023982,0.59334,3371.2,3371.1,1.52597939]
[1737001024179,0.59334,3371.2,3371.1,0.4693]
[1737001024575,4.72527939,3371.3,3369.7,4.14526988]
[1737001024881,1.05667939,3370.9,3370.6,5.11601365]
[1737001025082,1.07753,3370.8,3370.6,5.11601365]
[1737001025379,0.474,3370.7,3370.6,5.11601365]
[1737001025772,0.4841,3370.8,3370.7,0.59343]
[1737001026081,0.59334,3371.2,3370.8,0.59341]
[1737001026283,0.59336,3371.1,3370.9,1.05667939]
[1737001026485,3.80114,3371.3,3371.0,0.4772]
[1737001026782,0.59334,3371.2,3371.1,1.05667939]
[1737001027081,3.80113,3371.3,3371.1,1.05667939]
[1737001027976,3.2078,3371.3,3371.1,1.05667939]
[1737001028176,3.2078,3371.3,3371.1,1.65002939]
[1737001028673,3.2078,3371.3,3371.2,0.59334]
[1737001029188,3.2078,3372.0,3371.2,6.54577939]
[1737001029481,3.2078,3372.0,3371.7,2.93295314]
[1737001029679,3.2078,3372.0,3371.8,2.1156]
[1737001030477,3.2078,3372.0,3371.8,2.70884]
[1737001030882,3.2078,3372.0,3371.8,3.18324]
[1737001033983,3.2078,3372.0,3371.8,3.18323]
[1737001034287,3.2078,3372.0,3371.9,0.59322]
[1737001034588,3.2078,3372.0,3371.8,3.18323]
[1737001035885,0.59311,3372.6,3372.1,0.59318]
[1737001036085,3.80088,3372.7,3372.2,0.59317]
[1737001036285,3.80088,3372.7,3372.3,0.4604]
[1737001036589,0.59312,3372.5,3372.4,0.4559]
[1737001037682,3.2078,3372.7,3372.4,0.4559]
[1737001037883,0.59312,3372.5,3372.0,0.59319]
[1737001038188,0.59315,3372.4,3372.0,1.54869]
[1737001038383,1.05135,3372.4,3372.0,1.54869]
[1737001038892,0.59315,3372.3,3372.0,1.54869]
[1737001039389,1.05134,3372.4,3372.0,1.54869]
[1737001039889,0.59315,3372.3,3372.0,0.9555]
[1737001040085,0.59315,3372.3,3372.0,1.5487]
[1737001040392,0.4582,3372.4,3372.0,1.5487]
[1737001040694,0.4582,3372.4,3372.1,0.59317]
[1737001041187,3.2078,3372.7,3372.1,2.33971314]
[1737001041389,3.2078,3372.7,3372.4,2.93284314]
[1737001041590,3.2078,3372.7,3372.5,1.4095]
[1737001041793,3.2078,3372.7,3372.5,2.00262]
[1737001041990,3.2078,3372.7,3372.5,1.4095]
[1737001042389,3.2078,3372.7,3372.5,2.00261]
[1737001042992,3.2078,3372.7,3372.5,2.0026]
[1737001043189,3.2078,3372.7,3372.6,0.5931]
[1737001044288,3.2078,3372.7,3372.5,1.4095]
[1737001044495,3.2078,3372.7,3372.5,0.59311]
[1737001045593,3.2078,3372.7,3372.6,0.5931]
[1737001045786,3.2078,3372.7,3372.4,3.52771314]
[1737001045984,3.2078,3372.7,3372.6,0.5931]
[1737001050202,3.2078,3372.7,3372.6,41.3931]
[1737001050707,1.08095,3372.9,3372.6,41.3931]
[1737001050900,1.08095,3372.9,3372.7,0.4537]
[1737001050901,0.4879,3372.9,3372.7,0.4537]
[1737001051100,0.4879,3372.9,3372.7,0.9091]
[1737001051290,1.08095,3372.9,3372.7,0.9091]
[1737001051801,0.4879,3372.9,3372.7,1.50217]
[1737001051997,0.4879,3372.9,3372.7,0.9091]
[1737001052197,0.4879,3372.9,3372.8,0.59306]
[1737001058599,0.4879,3372.9,3372.7,0.9091]
[1737001058794,0.4879,3372.9,3372.7,1.50217]
[1737001059391,1.05763,3373.0,3372.7,3.84188314]
[1737001059596,3.2078,3373.1,3372.9,0.59304]
[1737001059791,0.4436,3373.5,3372.9,0.59304]
[1737001059792,0.59297,3373.4,3373.0,0.59302]
[1737001059992,0.59297,3373.4,3372.9,3.2078]
[1737001060201,0.59298,3373.3,3373.0,2.93274314]
[1737001060401,1.48244,3373.5,3373.2,0.59298]
[1737001060595,0.59297,3373.4,3373.1,0.593]
[1737001060797,0.59297,3373.4,3373.2,0.4625]
[1737001061302,0.59297,3373.4,3373.3,0.4439]
[1737001066106,0.8895,3373.5,3373.3,0.4439]
[1737001066301,0.59296,3373.4,3373.3,0.4439]
[1737001068405,0.8895,3373.5,3373.2,0.4625]
[1737001068706,0.8895,3373.5,3373.1,1.187]
[1737001068913,0.59296,3373.4,3373.2,0.59299]
[1737001069108,0.8895,3373.5,3373.4,0.59296]
[1737001069703,0.8895,3373.5,3373.2,0.4496]
[1737001070000,0.8895,3373.5,3373.4,0.59296]
[1737001070602,0.8895,3373.5,3373.3,0.59297]
[1737001070805,3.2078,3373.7,3373.2,0.4496]
[1737001071003,0.59291,3373.7,3373.4,0.59294]
[1737001071201,0.59291,3373.7,3373.5,0.4913]
[1737001071408,0.59291,3373.7,3373.5,0.9748]
[1737001071613,0.59292,3373.6,3373.5,0.9748]
[1737001072806,0.4609,3373.7,3373.3,3.2078]
[1737001073007,0.59296,3373.4,3373.3,3.2078]
[1737001074312,0.59295,3373.5,3373.3,3.2078]
[1737001074509,0.4609,3373.7,3373.3,3.2078]
[1737001074719,1.05381,3373.7,3373.3,3.80076]
[1737001075017,0.59293,3373.6,3373.3,3.2078]
[1737001075214,0.59295,3373.5,3373.3,3.2078]
[1737001075418,0.59293,3373.6,3373.3,3.80077]
[1737001075911,0.59294,3373.5,3373.3,3.2078]
[1737001076118,0.59293,3373.6,3373.3,3.2078]
[1737001078114,0.4609,3373.7,3373.3,3.2078]
[1737001078415,0.59295,3373.5,3373.2,0.9748]
[1737001078618,0.59295,3373.5,3373.2,2.1608]
[1737001078807,0.4551,3373.4,3373.2,2.1608]
[1737001079216,0.4551,3373.4,3373.2,2.75379]
[1737001080114,0.4609,3373.7,3373.4,0.59295]
[1737001080315,0.59294,3373.5,3373.2,2.75379]
[1737001080514,1.04802,3373.6,3373.2,2.75379]
[1737001081713,0.59298,3373.3,3373.2,2.1608]
[1737001081913,0.59298,3373.3,3372.0,15.27306451]
[1737001081914,0.59307,3372.8,3372.3,4.62361888]
[1737001082109,1.05512268,3372.5,3372.3,4.62361888]
[1737001082314,1.64825268,3372.5,3372.3,4.62361888]
[1737001082514,0.4689,3372.4,3372.3,45.42361888]
[1737001083308,0.4689,3372.4,3372.3,40.8]
[1737001086419,0.4689,3372.4,3372.3,41.39315]
[1737001086820,0.4689,3372.4,3372.3,40.8]
[1737001088125,3.2078,3373.0,3372.3,40.8]
[1737001088318,0.4685,3373.1,3372.6,2.33916821]
[1737001088625,0.4685,3373.1,3372.9,0.59304]
[1737001088920,0.4685,3373.1,3373.0,40.8]
[1737001089117,3.2078,3373.5,3373.0,40.8]
[1737001089322,4.26924,3373.5,3373.1,0.593]
[1737001090224,4.26924,3373.5,3373.0,41.39302]
[1737001090623,3.6763,3373.5,3373.0,40.8]
[1737001091223,3.6763,3373.5,3373.1,0.59301]
[1737001091625,4.26924,3373.5,3373.1,0.59301]
[1737001091821,4.26924,3373.5,3373.2,0.4865]
[1737001092030,3.6763,3373.5,3373.2,0.4865]
[1737001092332,0.593,3373.2,3373.0,40.8]
[1737001092525,6.01546821,3373.5,3372.9,0.4865]
[1737001092723,0.593,3373.2,3372.9,0.4865]
[1737001093027,0.593,3373.2,3372.9,41.2865]
[1737001093228,6.01546821,3373.5,3372.9,0.4865]
[1737001093428,0.59302,3373.1,3372.9,0.4865]
[1737001094024,6.01546821,3373.5,3372.8,1.187]
[1737001094229,1.06714,3373.0,3372.8,1.187]
[1737001094431,0.463,3372.9,3372.7,0.4522]
[1737001094927,0.463,3372.9,3372.7,1.6382]
[1737001096131,0.463,3372.9,3372.7,2.23128]
[1737001099027,0.463,3372.9,3372.7,1.6382]
[1737001099529,1.05605,3372.9,3372.7,1.6382]
[1737001101127,0.59306,3372.8,3372.7,0.4522]
[1737001101322,0.5931,3372.6,3372.5,3.2078]
[1737001102133,2.80216821,3372.9,3372.5,3.2078]
[1737001102332,0.59309,3372.7,3372.5,3.2078]
[1737001102932,0.59309,3372.7,3372.3,0.59315]
[1737001105036,0.59308,3372.8,3372.3,0.59315]
[1737001105438,0.59308,3372.8,3372.4,0.59313]
[1737001105830,2.80216821,3372.9,3372.5,0.59311]
[1737001105831,3.39521821,3372.9,3372.5,0.59311]
[1737001106129,0.463,3372.9,3372.5,3.2078]
[1737001106430,0.463,3372.9,3372.8,0.59306]
[1737001107134,0.463,3372.9,3372.8,41.39306]
[1737001108037,0.4741,3373.0,3372.8,40.8]
[1737001108236,0.4741,3373.0,3372.9,0.4499]
[1737001108537,0.4741,3373.0,3372.9,0.9102]
[1737001109235,0.4741,3373.0,3372.9,1.50325]
[1737001110140,0.4741,3373.0,3372.9,0.9102]
[1737001110330,0.4741,3373.0,3372.9,1.50325]
[1737001113632,1.06713,3373.0,3372.9,0.9102]
[1737001114335,0.4741,3373.0,3372.9,0.9102]
[1737001115240,1.06713,3373.0,3372.9,0.9102]
[1737001123544,2.12263895,3373.0,3372.9,0.9102]
[1737001128664,1.06713,3373.0,3372.9,0.9102]
[1737001131556,1.50260895,3373.1,3372.9,0.9102]
[1737001131750,0.4432,3373.3,3373.0,4.26330895]
[1737001131958,0.59298,3373.3,3373.1,0.593]
[1737001132151,0.9382,3373.5,3373.0,5.30481895]
[1737001132363,0.59301,3373.2,3373.0,3.6563]
[1737001132560,0.59301,3373.1,3373.0,3.6563]
[1737001132757,1.04321,3373.1,3373.0,3.2078]
[1737001133864,1.04321,3373.1,3372.9,0.9102]
[1737001134265,0.4502,3373.1,3372.9,0.9102]
[1737001134463,0.59303,3373.0,3372.9,0.9102]
[1737001135561,1.64853895,3373.0,3372.9,0.9102]
[1737001135859,0.59307,3372.8,3372.6,4.3938]
[1737001136164,1.64857895,3372.8,3372.7,0.4695]
[1737001136866,1.05550895,3372.8,3372.3,4.62361888]
[1737001137165,0.59306,3372.9,3372.6,1.05550895]
[1737001137362,0.59306,3372.9,3372.8,1.05550895]
[1737001138469,0.4571,3373.0,3372.7,0.4703]
[1737001138665,0.59308,3372.7,3372.6,4.26330895]
[1737001140064,0.59308,3372.7,3372.6,3.2078]
[1737001140264,0.4907,3372.8,3372.5,0.9358]
[1737001140466,0.5931,3372.6,3372.5,0.9358]
[1737001140767,0.59313,3372.4,3372.3,4.62361888]
[1737001141271,0.59313,3372.4,3372.2,6.37640895]
[1737001141474,1.03643,3372.4,3372.2,6.37640895]
[1737001142363,3.2078,3373.3,3372.2,6.37640895]
[1737001142562,0.59292,3373.7,3373.2,1.64848895]
[1737001142767,3.2078,3373.8,3373.6,1.64841895]
[1737001142969,3.2078,3373.8,3373.7,41.2842]
[1737001143469,3.2078,3373.8,3373.7,41.87711]
[1737001144066,3.2078,3373.8,3373.7,1.07711]
[1737001144758,0.4433,3374.1,3373.7,1.07711]
[1737001144961,0.4433,3374.1,3373.8,1.05550895]
[1737001145161,0.4433,3374.1,3373.8,1.64838895]
[1737001145362,0.4433,3374.1,3373.8,0.59288]
[1737001145557,1.03614,3374.1,3373.8,0.59288]
[1737001145762,0.4433,3374.1,3373.9,0.59287]
[1737001145965,3.2078,3374.2,3374.0,0.59284]
[1737001146168,0.59278,3374.4,3374.0,0.59284]
[1737001146969,0.5928,3374.3,3374.0,0.59284]
[1737001147272,0.5928,3374.3,3373.9,0.59287]
[1737001147574,0.9452,3374.5,3373.8,3.80068]
[1737001147870,0.59283,3374.2,3373.8,3.80068]
[1737001148571,0.4761,3374.5,3374.1,0.59282]
[1737001148770,1.06888,3374.5,3374.2,0.4909]
[1737001149769,0.4761,3374.5,3373.8,4.98568]
[1737001149968,0.59284,3374.1,3373.8,4.8837]
[1737001150872,0.59286,3374.0,3373.8,4.8837]
[1737001151073,0.59284,3374.1,3373.8,4.8837]
[1737001151273,3.2078,3374.3,3373.8,4.8837]
[1737001151680,0.59285,3374.1,3373.8,4.8837]
[1737001152269,3.2078,3374.3,3373.8,4.8837]
[1737001152470,3.80061,3374.3,3373.8,5.47658]
[1737001152776,3.80061,3374.3,3373.8,4.8837]
[1737001153070,3.80061,3374.3,3373.9,0.59287]
[1737001155172,3.80061,3374.3,3373.8,4.8837]
[1737001155173,3.2078,3374.3,3373.8,4.8837]
[1737001155377,3.2078,3374.3,3374.0,0.59285]
[1737001156174,3.2078,3374.3,3374.1,0.59283]
[1737001156581,3.2078,3374.3,3374.2,0.4723]
[1737001158482,3.8006,3374.3,3374.2,0.4723]
[1737001159078,3.2078,3374.3,3374.2,0.4723]
[1737001160285,0.59278,3374.4,3374.2,0.4723]
[1737001161679,0.4761,3374.5,3373.8,4.8837]
[1737001161889,0.59285,3374.1,3373.9,0.4592]
[1737001162282,0.4558,3374.0,3373.9,0.4592]
[1737001164183,0.4558,3374.0,3373.8,3.6987]
[1737001164379,0.4558,3374.0,3372.4,9.2934273]
[1737001164380,0.59292,3373.7,3373.5,0.9589]
[1737001165489,0.59292,3373.7,3373.5,2.01385555]
[1737001167288,0.59292,3373.7,3373.5,0.9589]
[1737001168987,0.9118,3373.9,3373.5,0.9589]
[1737001169193,0.59294,3373.5,3373.3,45.1928]
[1737001169395,0.4576,3373.4,3373.3,45.1928]
[1737001170085,1.05056,3373.4,3373.3,3.2078]
[1737001170291,0.59301,3373.2,3373.0,0.9349]
[1737001170795,0.59301,3373.1,3373.0,41.7349]
[1737001171295,0.4576,3373.4,3373.0,41.7349]
[1737001171488,0.593,3373.2,3373.0,41.7349]
[1737001171683,0.4603,3373.3,3373.0,41.7349]
[1737001172091,0.593,3373.2,3373.0,41.7349]
[1737001172291,0.4603,3373.3,3373.0,0.9349]
[1737001172598,0.593,3373.2,3373.0,0.9349]
[1737001174098,0.59303,3373.0,3372.9,40.8]
[1737001174498,0.59303,3373.0,3372.7,4.3918]
[1737001174696,0.4858,3372.9,3372.7,4.3918]
[1737001175496,0.4858,3372.9,3372.7,3.2078]
[1737001176101,0.59302,3373.1,3372.7,3.80088]
[1737001178604,0.59303,3373.0,3372.7,3.80088]
[1737001179605,0.59302,3373.1,3372.7,3.80088]
[1737001180406,0.59302,3373.1,3372.8,40.8]
[1737001181607,0.59302,3373.1,3372.7,0.59308]
[1737001181807,0.59303,3373.0,3372.7,0.59308]
[1737001182011,0.4722,3373.2,3372.8,40.8]
[1737001182204,0.59303,3373.0,3372.8,40.8]
[1737001182904,0.59303,3373.0,3372.7,0.59307]
[1737001183308,0.59303,3373.0,3372.7,41.39307]
[1737001186108,0.4722,3373.2,3372.7,40.8]
[1737001186307,0.59305,3372.9,3372.7,40.8]
[1737001186503,0.59305,3372.9,3372.6,5.95109]
[1737001187111,0.59305,3372.9,3372.6,46.75109]
[1737001189311,0.59305,3372.9,3372.7,1.05542421]
[1737001190919,1.05542421,3373.1,3372.7,1.05542421]
[1737001191718,0.59305,3372.9,3372.7,1.05542421]
[1737001195315,0.59306,3372.8,3372.7,1.05542421]
[1737001197626,1.05542421,3373.1,3372.7,1.05542421]
[1737001197924,0.59305,3372.9,3372.7,1.05542421]
[1737001198425,0.59305,3372.9,3372.8,40.8]
[1737001199628,0.59305,3372.9,3372.7,1.05542421]
[1737001200017,0.59305,3372.9,3372.7,41.85542421]
[1737001200625,0.59305,3372.9,3372.7,1.05542421]
[1737001201027,0.59306,3372.8,3372.7,1.05542421]
[1737001201224,0.59306,3372.8,3372.7,41.85542421]
[1737001202426,0.4722,3373.2,3372.6,0.9652]
[1737001202427,0.59308,3372.7,3372.6,0.9652]
[1737001202623,2.10670421,3372.7,3372.6,0.4787]
[1737001202821,0.59312,3372.5,3372.4,0.4882]
[1737001203126,1.64854421,3372.5,3372.4,0.4882]
[1737001203630,0.59312,3372.5,3372.4,0.4882]
[1737001206425,1.64854421,3372.5,3372.4,0.4882]
[1737001206827,0.59313,3372.4,3372.3,1.01468239]
[1737001210633,3.80093,3372.4,3372.3,1.01468239]
[1737001213840,3.80093,3372.4,3372.3,2.39e-06]
[1737001214037,2.07606,3372.3,3371.4,0.4824]
[1737001214243,1.05542421,3371.8,3371.5,1.05542421]
[1737001214442,0.59326,3371.7,3371.5,1.05542421]
[1737001214942,0.59327,3371.6,3371.5,1.05542421]
[1737001215144,0.4506,3371.9,3371.5,1.05542421]
[1737001215345,1.04383,3371.9,3371.8,1.05542421]
[1737001215642,0.59324,3371.8,3371.6,2.12769421]
[1737001216151,0.59326,3371.7,3371.6,1.53442421]
[1737001216335,0.59326,3371.7,3371.6,1.05542421]
[1737001216733,0.59329,3371.5,3371.4,1.53782421]
[1737001216939,0.59329,3371.5,3371.4,0.4824]
[1737001229854,0.59329,3371.5,3371.4,41.2824]
[1737001234951,0.59329,3371.5,3371.4,0.4824]
[1737001236150,0.59328,3371.6,3371.4,0.4824]
[1737001236351,0.59328,3371.6,3371.5,1.05542421]
[1737001236554,0.59328,3371.6,3371.5,1.50802421]
[1737001236955,0.59329,3371.5,3371.4,0.4824]
[1737001249963,0.4506,3371.9,3371.4,1.53782421]
[1737001250153,1.04383,3371.9,3371.8,1.05542421]
[1737001250566,0.59326,3371.8,3371.6,1.05542421]
[1737001250767,0.59326,3371.7,3371.6,1.05542421]
[1737001253062,0.59325,3371.8,3371.6,1.05542421]
[1737001255672,0.59326,3371.7,3371.6,1.05542421]
[1737001257165,0.4506,3371.9,3371.6,1.05542421]
[1737001257371,0.59325,3371.8,3371.6,1.05542421]
[1737001257574,0.59325,3371.8,3371.6,1.64869421]
[1737001257865,0.59325,3371.8,3371.6,1.05542421]
[1737001258673,0.4506,3371.9,3371.6,1.64869421]
[1737001258873,0.59314,3372.4,3372.0,0.5932]
[1737001259175,0.59314,3372.4,3372.3,1.05542421]
[1737001259567,0.59317,3372.2,3372.1,0.9715]
[1737001260266,1.07877,3372.2,3372.1,0.9715]
[1737001261774,0.59322,3371.9,3371.8,4.3908]
[1737001261971,0.59322,3371.9,3371.8,4.8662]
[1737001262176,0.59322,3371.9,3371.8,3.6832]
[1737001265178,0.59322,3371.9,3371.8,0.4754]
[1737001268079,1.05542421,3371.9,3371.4,4.3908]
[1737001268280,1.05542421,3371.7,3371.4,4.3908]
[1737001268478,0.59329,3371.5,3371.4,4.3908]
[1737001269380,1.06608,3371.6,3371.4,5.44622421]
[1737001269580,0.59329,3371.5,3371.4,5.44622421]
[1737001270983,1.06608,3371.6,3371.4,5.44622421]
[1737001271587,0.59329,3371.5,3371.4,3.2078]
[1737001271889,1.64871421,3371.5,3371.4,3.2078]
[1737001273986,1.64871421,3371.5,3371.1,2.09568421]
[1737001274185,0.59331,3371.4,3371.1,3.27868421]
[1737001275587,0.5933,3371.5,3371.2,0.59334]
[1737001275889,0.4728,3371.6,3371.3,4.26322421]
[1737001276079,0.4728,3371.6,3371.5,1.05542421]
[1737001276275,3.80099,3372.1,3371.5,42.91084842]
[1737001276478,3.2078,3372.1,3372.0,1.05542421]
[1737001277079,0.4614,3372.4,3372.0,1.05542421]
[1737001277279,0.4614,3372.4,3372.2,0.59316]
[1737001277487,0.4614,3372.4,3372.3,0.4642]
[1737001282392,0.4614,3372.4,3372.1,0.4763]
[1737001282684,0.59317,3372.2,3372.0,0.4469]
[1737001283082,0.4567,3372.3,3372.0,0.4469]
[1737001283282,0.59317,3372.2,3372.0,0.4469]
[1737001283981,2.79602071,3372.3,3371.8,3.2078]
[1737001284286,0.59329,3371.5,3371.4,4.59996926]
[1737001284788,7.03016071,3372.0,3371.2,3.2078]
[1737001284989,0.4655,3371.4,3371.2,3.2078]
[1737001285190,0.59333,3371.3,3371.2,3.2078]
[1737001287688,0.59339,3371.0,3370.7,1.77643]
[1737001288490,0.59338,3371.1,3370.7,1.77643]
[1737001289191,0.59338,3371.1,3370.7,1.183]
[1737001289586,0.59338,3371.1,3370.7,1.77643]
[1737001289791,0.59338,3371.0,3370.7,1.183]
[1737001290794,0.4655,3371.4,3370.7,1.183]
[1737001290999,0.59337,3371.1,3370.7,1.183]
[1737001291295,0.59338,3371.0,3370.7,1.183]
[1737001292291,0.4655,3371.4,3370.7,1.183]
[1737001292595,0.59337,3371.1,3370.7,1.77643]
[1737001294903,0.59338,3371.1,3370.7,3.2078]
[1737001295095,0.59338,3371.1,3370.7,4.3908]
[1737001295400,0.59338,3371.1,3370.7,4.98423]
[1737001296703,0.59335,3371.2,3370.7,4.98423]
[1737001297296,0.59335,3371.2,3370.8,0.59341]
[1737001298703,3.2078,3371.6,3370.9,2.33932071]
[1737001298905,0.59325,3371.8,3371.0,0.59338]
[1737001299108,0.59325,3371.8,3371.4,0.59331]
[1737001299302,0.59325,3371.8,3371.5,0.9369]
[1737001299699,0.4469,3371.9,3371.5,0.9369]
[1737001300004,0.59318,3372.2,3371.8,0.59324]
[1737001300513,3.80093,3372.4,3372.0,0.59319]
[1737001300707,3.80093,3372.4,3372.1,0.4635]
[1737001300898,3.2078,3372.4,3372.2,0.4892]
[1737001301100,0.59315,3372.3,3372.2,0.4892]
[1737001301508,0.59313,3372.5,3372.2,0.4892]
[1737001302312,3.2078,3372.8,3372.2,0.4892]
[1737001302511,3.2078,3372.8,3372.2,1.08236]
[1737001302709,0.59313,3372.5,3372.2,1.08236]
[1737001304105,0.59312,3372.5,3372.2,1.08236]
[1737001305710,0.5931,3372.6,3372.3,0.59315]
[1737001305913,0.5931,3372.7,3372.3,0.59315]
[1737001306113,0.5931,3372.6,3372.3,0.59315]
[1737001307308,0.5931,3372.6,3372.2,0.4892]
[1737001307309,0.59312,3372.5,3372.2,1.08236]
[1737001309617,0.59312,3372.5,3372.2,0.4892]
[1737001309814,0.59306,3372.8,3372.2,0.4892]
[1737001310010,0.59313,3372.5,3372.2,0.4892]
[1737001310318,0.59314,3372.4,3372.2,0.4892]
[1737001312713,0.59314,3372.4,3372.2,1.6712]
[1737001313822,0.59315,3372.4,3372.2,1.6712]
[1737001314419,0.59308,3372.7,3372.2,1.6712]
[1737001314618,0.59315,3372.4,3372.2,1.6712]
[1737001314920,0.59315,3372.4,3372.2,0.4892]
[1737001315124,0.59315,3372.4,3372.2,1.6712]
[1737001315619,2.33932071,3372.6,3372.2,0.4892]
[1737001315829,0.59315,3372.3,3372.2,0.4892]
[1737001316033,2.33932071,3372.3,3371.9,1.182]
[1737001316233,0.5932,3372.0,3371.9,1.182]
[1737001320234,2.33932071,3372.0,3371.7,3.2078]
[1737001320437,0.59324,3371.8,3371.7,3.2078]
[1737001323536,2.33932071,3372.0,3371.4,1.182]
[1737001323732,0.59329,3371.5,3371.4,1.182]
[1737001327238,0.9407,3371.6,3371.3,0.4913]
[1737001327239,0.59331,3371.4,3371.3,0.4913]
[1737001327841,0.59333,3371.3,3371.2,6.90257944]
[1737001329336,0.59333,3371.3,3371.2,3.2078]
[1737001329536,0.59336,3371.1,3371.0,0.4664]